{"text_format":"1","workbook":"xlsx","n_sheets":3,"sheets":["لوحة المعلومات","قائمة المعدات","البيانات المحورية"],"not_rendered":{"charts":0,"images":0,"macros":1,"external_links":0,"defined_names":13,"comments":0,"pivot_tables":1},"unopened":[],"bounds":{"document_bytes":16777216,"sheet_cells":100000,"rows_first":2000,"rows_last":500,"rows_between":2000,"halvings":0,"cell_chars":16384,"cell_head_chars":4096},"cells_cut":0,"cells_raw":0,"read":"whole","date_system":"1900"}

{"sheet":"لوحة المعلومات","index":0,"n_rows":20,"n_cols":6,"rows_kept":20,"cut":false,"hidden":false,"merged":[]}
[null,"لوحة المعلومات"]
[]
[]
[null,null,null,null,null," العدد الإجمالي"]
[null,null,null,null,null,{"$f":"GETPIVOTDATA(\"العدد\",'البيانات المحورية'!$B$11)","v":3}]
[]
[null,null,null,null,null,"إجمالي التكاليف الشهرية"]
[null,null,null,null,null,{"$f":"GETPIVOTDATA(\"مجموع من إجمالي التكاليف الشهرية\",'البيانات المحورية'!$B$11)","v":1765.5943035068672}]
[]
[null,null,null,null,null,"تكاليف التشغيل"]
[null,null,null,null,null,{"$f":"GETPIVOTDATA(\"مجموع من تكاليف التشغيل الشهرية\",'البيانات المحورية'!$B$11)","v":605}]
[]
[null,null,null,null,null,"الإهلاك الشهري"]
[null,null,null,null,null,{"$f":"GETPIVOTDATA(\"مجموع من الإهلاك الشهري (خط مستقيم)\",'البيانات المحورية'!$B$11)","v":659.72222222222217}]
[]
[null,null,null,null,null,"قيمة الدفعة"]
[null,null,null,null,null,{"$f":"GETPIVOTDATA(\"مجموع من الدفعة الشهرية\",'البيانات المحورية'!$B$11)","v":1160.5943035068672}]
[]
[null,null,null,null,null,"القيمة الحالية"]
[null,null,null,null,null,{"$f":"GETPIVOTDATA(\"مجموع من القيمة الحالية\",'البيانات المحورية'!$B$11)","v":36448.173515981733}]

{"sheet":"قائمة المعدات","index":1,"n_rows":9,"n_cols":20,"rows_kept":9,"cut":false,"hidden":false,"merged":[[2,1,2,3]]}
[null,"قائمة المعدات"]
[]
[null,"التمييز عندما تكون المدفوعات الشهرية المتبقية أقل من: ",null,null,20]
[]
[null,"الأصل أو الرقم التسلسلي","وصف العنصر (الطراز والنموذج)","الموقع","الحالة","المورد","الباقي من سنوات الخدمة ","القيمة الأولية","الدفعة الأولى","تاريخ الشراء أو الإيجار","مدة القرض (بالسنوات)","معدل القرض","تكاليف التشغيل الشهرية","القيمة المتوقعة في نهاية العقد","المدفوعات الشهرية المتبقية","الدفعة الشهرية","إجمالي التكاليف الشهرية","الإهلاك السنوي (خط مستقيم)","الإهلاك الشهري (خط مستقيم)","القيمة الحالية"]
[null,123,"الطراز 1","الفرع الرئيسي","جيد","محلي",5,30000,5000,"2011-01-15",4,0.1,200,20000,{"$f":"IFERROR(SUMPRODUCT(--(DAY(ROW(OFFSET($A$1,,,DATE(YEAR(المعدات[[#This Row],[تاريخ الشراء أو الإيجار]])+المعدات[[#This Row],[مدة القرض (بالسنوات)]],MONTH(المعدات[[#This Row],[تاريخ الشراء أو الإيجار]])-1,DAY(المعدات[[#This Row],[تاريخ الشراء أو الإيجار]]))-TODAY()))+DATE(YEAR(المعدات[[#This Row],[تاريخ الشراء أو الإيجار]])+المعدات[[#This Row],[مدة القرض (بالسنوات)]],MONTH(المعدات[[#This Row],[تاريخ الشراء أو الإيجار]]),DAY(المعدات[[#This Row],[تاريخ الشراء أو الإيجار]]))-1)=DAY(المعدات[[#This Row],[تاريخ الشراء أو الإيجار]]))),0)","v":24},{"$f":"IFERROR(-(المعدات[القيمة الأولية]>0)*(المعدات[القيمة الأولية]<>المعدات[الدفعة الأولى])*PMT(المعدات[معدل القرض]/MonthsInYear,المعدات[مدة القرض (بالسنوات)]*MonthsInYear,المعدات[القيمة الأولية]-المعدات[الدفعة الأولى]),0)","v":634.06458586867973},{"$f":"المعدات[[#This Row],[الدفعة الشهرية]]+المعدات[تكاليف التشغيل الشهرية]","v":834.06458586867973},{"$f":"IFERROR((المعدات[القيمة الأولية]>0)*SLN(المعدات[القيمة الأولية],المعدات[القيمة المتوقعة في نهاية العقد],المعدات[مدة القرض (بالسنوات)]),0)","v":2500},{"$f":"IFERROR(المعدات[الإهلاك السنوي (خط مستقيم)]/MonthsInYear,0)","v":208.33333333333334},{"$f":"IFERROR(المعدات[القيمة الأولية]-(المعدات[الإهلاك السنوي (خط مستقيم)]*((TODAY()-المعدات[تاريخ الشراء أو الإيجار])/DaysInYear)),0)","v":25020.547945205479}]
[null,234,"الطراز 2","الفرع الرئيسي","جيد","محلي",4,12500,1500,"2011-03-10",3,7.7499999999999999E-2,120,3000,{"$f":"IFERROR(SUMPRODUCT(--(DAY(ROW(OFFSET($A$1,,,DATE(YEAR(المعدات[[#This Row],[تاريخ الشراء أو الإيجار]])+المعدات[[#This Row],[مدة القرض (بالسنوات)]],MONTH(المعدات[[#This Row],[تاريخ الشراء أو الإيجار]])-1,DAY(المعدات[[#This Row],[تاريخ الشراء أو الإيجار]]))-TODAY()))+DATE(YEAR(المعدات[[#This Row],[تاريخ الشراء أو الإيجار]])+المعدات[[#This Row],[مدة القرض (بالسنوات)]],MONTH(المعدات[[#This Row],[تاريخ الشراء أو الإيجار]]),DAY(المعدات[[#This Row],[تاريخ الشراء أو الإيجار]]))-1)=DAY(المعدات[[#This Row],[تاريخ الشراء أو الإيجار]]))),0)","v":13},{"$f":"IFERROR(-(المعدات[القيمة الأولية]>0)*(المعدات[القيمة الأولية]<>المعدات[الدفعة الأولى])*PMT(المعدات[معدل القرض]/MonthsInYear,المعدات[مدة القرض (بالسنوات)]*MonthsInYear,المعدات[القيمة الأولية]-المعدات[الدفعة الأولى]),0)","v":343.43280007691891},{"$f":"المعدات[[#This Row],[الدفعة الشهرية]]+المعدات[تكاليف التشغيل الشهرية]","v":463.43280007691891},{"$f":"IFERROR((المعدات[القيمة الأولية]>0)*SLN(المعدات[القيمة الأولية],المعدات[القيمة المتوقعة في نهاية العقد],المعدات[مدة القرض (بالسنوات)]),0)","v":3166.6666666666665},{"$f":"IFERROR(المعدات[الإهلاك السنوي (خط مستقيم)]/MonthsInYear,0)","v":263.88888888888886},{"$f":"IFERROR(المعدات[القيمة الأولية]-(المعدات[الإهلاك السنوي (خط مستقيم)]*((TODAY()-المعدات[تاريخ الشراء أو الإيجار])/DaysInYear)),0)","v":6661.1872146118722}]
[null,345,"الطراز 3","الفرع 1","مقبول","غير ذلك",1,10000,2500,"2010-09-15",4,0.08,285,1000,{"$f":"IFERROR(SUMPRODUCT(--(DAY(ROW(OFFSET($A$1,,,DATE(YEAR(المعدات[[#This Row],[تاريخ الشراء أو الإيجار]])+المعدات[[#This Row],[مدة القرض (بالسنوات)]],MONTH(المعدات[[#This Row],[تاريخ الشراء أو الإيجار]])-1,DAY(المعدات[[#This Row],[تاريخ الشراء أو الإيجار]]))-TODAY()))+DATE(YEAR(المعدات[[#This Row],[تاريخ الشراء أو الإيجار]])+المعدات[[#This Row],[مدة القرض (بالسنوات)]],MONTH(المعدات[[#This Row],[تاريخ الشراء أو الإيجار]]),DAY(المعدات[[#This Row],[تاريخ الشراء أو الإيجار]]))-1)=DAY(المعدات[[#This Row],[تاريخ الشراء أو الإيجار]]))),0)","v":20},{"$f":"IFERROR(-(المعدات[القيمة الأولية]>0)*(المعدات[القيمة الأولية]<>المعدات[الدفعة الأولى])*PMT(المعدات[معدل القرض]/MonthsInYear,المعدات[مدة القرض (بالسنوات)]*MonthsInYear,المعدات[القيمة الأولية]-المعدات[الدفعة الأولى]),0)","v":183.09691756126861},{"$f":"المعدات[[#This Row],[الدفعة الشهرية]]+المعدات[تكاليف التشغيل الشهرية]","v":468.09691756126858},{"$f":"IFERROR((المعدات[القيمة الأولية]>0)*SLN(المعدات[القيمة الأولية],المعدات[القيمة المتوقعة في نهاية العقد],المعدات[مدة القرض (بالسنوات)]),0)","v":2250},{"$f":"IFERROR(المعدات[الإهلاك السنوي (خط مستقيم)]/MonthsInYear,0)","v":187.5},{"$f":"IFERROR(المعدات[القيمة الأولية]-(المعدات[الإهلاك السنوي (خط مستقيم)]*((TODAY()-المعدات[تاريخ الشراء أو الإيجار])/DaysInYear)),0)","v":4766.4383561643835}]
[null,"الإجمالي",null,null,null,null,{"$f":"SUBTOTAL(101,المعدات[[الباقي من سنوات الخدمة ]])","v":3.3333333333333335},{"$f":"SUBTOTAL(109,المعدات[القيمة الأولية])","v":52500},{"$f":"SUBTOTAL(109,المعدات[الدفعة الأولى])","v":9000},null,{"$f":"SUBTOTAL(101,المعدات[مدة القرض (بالسنوات)])","v":3.6666666666666665},{"$f":"SUBTOTAL(101,المعدات[معدل القرض])","v":8.5833333333333331E-2},{"$f":"SUBTOTAL(109,المعدات[تكاليف التشغيل الشهرية])","v":605},{"$f":"SUBTOTAL(109,المعدات[القيمة المتوقعة في نهاية العقد])","v":24000},{"$f":"SUBTOTAL(101,المعدات[المدفوعات الشهرية المتبقية])","v":19},{"$f":"SUBTOTAL(109,المعدات[الدفعة الشهرية])","v":1160.5943035068672},{"$f":"SUBTOTAL(109,المعدات[إجمالي التكاليف الشهرية])","v":1765.5943035068672},{"$f":"SUBTOTAL(101,المعدات[الإهلاك السنوي (خط مستقيم)])","v":2638.8888888888887},{"$f":"SUBTOTAL(101,المعدات[الإهلاك الشهري (خط مستقيم)])","v":219.90740740740739},{"$f":"SUBTOTAL(109,المعدات[القيمة الحالية])","v":36448.173515981733}]

{"sheet":"البيانات المحورية","index":2,"n_rows":15,"n_cols":8,"rows_kept":15,"cut":false,"hidden":false,"merged":[]}
[null,"البيانات المحورية"]
[null,"يجب أن تظل هذه الورقة مخفية. قد ينتج عن تغيير بنية PivotTable في هذه الورقة أخطاء في مقسمات طرق عرض لوحة المعلومات."]
[]
[null,"وصف العنصر (الطراز والنموذج)","(الكل)"]
[null,"الموقع","(الكل)"]
[null,"الحالة","(الكل)"]
[null,"المورد","(الكل)"]
[null," سنوات الخدمة المتبقية","(الكل)"]
[null,"مدة القرض (بالسنوات)","(الكل)"]
[]
[null,"تسميات الصفوف","العدد","مجموع من تكاليف التشغيل الشهرية","مجموع من الدفعة الشهرية","مجموع من إجمالي التكاليف الشهرية","مجموع من الإهلاك الشهري (خط مستقيم)","مجموع من القيمة الحالية"]
[null,123,1,200,634.06458586867973,834.06458586867973,208.33333333333334,25020.547945205479]
[null,234,1,120,343.43280007691891,463.43280007691891,263.88888888888886,6661.1872146118722]
[null,345,1,285,183.09691756126861,468.09691756126858,187.5,4766.4383561643835]
[null,"الإجمالي الكلي",3,605,1160.5943035068672,1765.5943035068672,659.72222222222217,36448.173515981733]